bitfinex/quotes_SOLUSD_20220117
["timestamp","ask_amount","ask_price","bid_price","bid_amount"]
[1642448886126,2.03742931,140.04,140.01,0.02339957]
[1642448886328,6.06439994,140.03,140.01,0.02339957]
[1642448888227,2.03742931,140.02,140.01,0.02339957]
[1642448891132,15.04583252,140.01,139.98,0.27339957]
[1642448892332,2.03742931,140.02,139.98,0.27339957]
[1642448896036,2.03742931,140.02,140.0,0.02342024]
[1642448896939,6.06439994,140.01,140.0,0.02342024]
[1642448899736,3.03219997,140.01,140.0,0.02342024]
[1642448899935,2.03742931,140.02,140.0,0.02342024]
[1642448901039,2.03742931,140.02,139.98,0.27342024]
[1642448902041,2.03742931,140.03,139.98,0.27342024]
[1642448902843,2.03742931,140.03,139.99,50.9820123]
[1642448903240,2.03742931,140.03,139.99,10.29]
[1642448906042,12.75262931,140.03,140.01,0.02339957]
[1642448906240,6.06439994,140.02,140.01,0.02339957]
[1642448906644,14.61241849,140.02,140.01,0.02339957]
[1642448907743,6.06439994,140.02,140.01,0.02339957]
[1642448908445,6.06439994,140.02,140.01,10.31339957]
[1642448910078,6.06439994,140.02,140.01,0.02339957]
[1642448911043,6.06439994,140.02,139.99,16.57339957]
[1642448911545,3.03219997,140.02,140.0,0.25]
[1642448911746,3.03219997,140.02,139.99,16.57339957]
[1642448912348,3.03219997,140.02,140.0,0.25]
[1642448913447,3.03219997,140.02,140.0,10.54]
[1642448913746,2.03742931,140.03,140.0,10.54]
[1642448913946,8.03742931,140.03,140.0,10.54]
[1642448914148,2.03742931,140.03,140.0,10.54]
[1642448914346,8.03742931,140.03,140.0,10.54]
[1642448914745,8.03742931,140.03,140.0,10.29]
[1642448915146,3.03219997,140.02,140.0,10.29]
[1642448917453,3.03219997,140.01,140.0,10.29]
[1642448920653,3.03219997,140.02,140.0,10.29]
[1642448921253,3.03219997,140.01,140.0,10.31342024]
[1642448921456,3.03219997,140.02,140.0,10.31342024]
[1642448923455,2.03742931,140.03,140.0,10.31342024]
[1642448923871,3.03219997,140.02,140.0,10.31342024]
[1642448926986,5.06962928,140.02,140.0,10.31342024]
[1642448927988,5.06962928,140.02,140.0,0.02342024]
[1642448928185,3.03219997,140.01,140.0,0.02342024]
[1642448928387,11.06962928,140.01,140.0,0.02342024]
[1642448928588,5.06962928,140.01,140.0,0.02342024]
[1642448928786,20.56218858,140.01,140.0,0.02342024]
[1642448931087,20.56218858,140.01,139.96,0.25]
[1642448931291,20.56218858,140.01,139.95,14.04083485]
[1642448931487,31.27918858,140.01,139.95,3.75083485]
[1642448931687,31.27918858,140.01,139.95,0.02342024]
[1642448931887,102.92918858,140.01,139.95,0.02342024]
[1642448932287,0.25,140.0,139.95,0.02342024]
[1642448933290,2.03742931,139.98,139.95,0.02342024]
[1642448933488,12.75672931,139.98,139.95,0.02342024]
[1642448934790,3.03219997,139.97,139.95,0.02342024]
[1642448935892,0.25,139.96,139.95,0.02342024]
[1642448936096,44.27517644,139.96,139.93,25.00238225]
[1642448936494,0.25,139.96,139.93,25.00238225]
[1642448936992,12.75672931,139.98,139.93,25.00238225]
[1642448937192,0.25,139.97,139.93,25.00238225]
[1642448940395,0.25,139.97,139.93,0.02348225]
[1642448940999,0.25,139.97,139.91,28.68762361]
[1642448941197,0.25,139.97,139.92,10.29]
[1642448941397,0.25,139.97,139.92,16.29]
[1642448941997,0.25,139.97,139.92,40.2712]
[1642448942398,0.25,139.97,139.92,34.2712]
[1642448942598,0.25,139.97,139.92,40.2712]
[1642448944801,0.25,139.97,139.93,46.12655593]
[1642448944999,0.25,139.97,139.92,34.2712]
[1642448945200,0.25,139.97,139.92,40.2712]
[1642448946103,0.25,139.97,139.94,0.02354429]
[1642448946302,6.06439994,139.96,139.94,0.02354429]
[1642448951106,6.06439994,139.96,139.92,34.29472361]
[1642448952834,0.25,139.97,139.92,34.29472361]
[1642448953435,22.911,139.98,139.93,0.25]
[1642448953636,22.911,139.98,139.93,10.54]
[1642448954339,2.03742931,139.99,139.93,16.8]
[1642448954636,2.03742931,139.99,139.94,23.1323]
[1642448954836,2.03742931,139.99,139.95,10.54]
[1642448955238,2.03742931,139.99,139.95,16.54]
[1642448955938,2.03742931,139.99,139.95,16.56352361]
[1642448956140,2.03742931,139.99,139.95,16.31352361]
[1642448956338,8.42929384,139.98,139.95,16.31352361]
[1642448956541,8.42929384,139.98,139.95,0.02352361]
[1642448956738,6.06439994,139.97,139.95,0.02352361]
[1642448957738,10.7184,139.99,139.95,0.02352361]
[1642448957938,2.03742931,140.01,139.95,0.02352361]
[1642448958139,2.03742931,140.01,139.95,62.80345118]
[1642448958343,2.03742931,139.97,139.96,10.29]
[1642448959443,2.03742931,140.0,139.96,10.29]
[1642448960043,8.03742931,140.0,139.96,10.29]
[1642448961042,8.03742931,140.0,139.98,0.02346158]
[1642448961746,3.03219997,139.99,139.98,0.02346158]
[1642448961947,8.03742931,140.0,139.98,0.02346158]
[1642448963143,6.06439994,139.99,139.98,0.02346158]
[1642448964046,8.10182925,139.99,139.98,0.02346158]
[1642448965146,8.35182925,139.99,139.98,0.02346158]
[1642448965947,8.35182925,139.99,139.92,35.09116158]
[1642448966148,19.07042925,139.99,139.92,35.09116158]
[1642448966348,17.03299994,139.99,139.92,35.09116158]
[1642448966755,16.78299994,139.99,139.92,35.09116158]
[1642448966953,24.04799994,139.99,139.92,35.09116158]
[1642448967154,2.03195081,139.98,139.92,35.09116158]
[1642448967353,10.7211,139.97,139.92,10.31346158]
[1642448967755,16.7211,139.97,139.92,10.31346158]
[1642448967953,16.5117273,139.96,139.92,10.31346158]
[1642448968955,2.03195081,139.97,139.92,10.31346158]
[1642448969556,10.7213,139.95,139.92,10.31346158]
[1642448969957,10.7213,139.95,139.92,0.02346158]
[1642448970556,0.25,139.94,139.92,0.02346158]
[1642448970859,45.96175246,139.93,139.92,0.02346158]
[1642448971058,52.0261524,139.93,139.89,10.31354429]
[1642448971661,60.0081524,139.93,139.89,0.02354429]
[1642448972260,66.0081524,139.93,139.89,0.02354429]
[1642448974263,10.9742,139.92,139.89,0.02354429]
[1642448974666,6.06439994,139.91,139.89,0.02354429]
[1642448975665,16.78919994,139.91,139.89,0.02354429]
[1642448976064,88.43919994,139.91,139.86,10.31360636]
[1642448976265,94.43919994,139.91,139.86,10.31360636]
[1642448979401,22.78919994,139.91,139.86,10.31360636]
[1642448979606,6.06439994,139.91,139.86,10.31360636]
[1642448980805,16.78889994,139.91,139.86,10.31360636]
[1642448981002,16.78889994,139.91,139.88,0.02366845]
[1642448981203,0.25,139.9,139.88,0.02366845]
[1642448981803,22.7419,139.93,139.88,0.02366845]
[1642448982006,0.25,139.92,139.88,0.02366845]
[1642448982305,22.7419,139.93,139.88,0.02366845]
[1642448982508,33.4652,139.93,139.88,0.02366845]
[1642448982703,2.03195081,139.92,139.88,0.02366845]
[1642448983504,24.77385081,139.93,139.88,0.02366845]
[1642448983704,0.25,139.92,139.88,0.02366845]
[1642448986111,0.25,139.92,139.85,8.27663063]
[1642448986313,0.25,139.92,139.85,6.27362705]
[1642448986716,0.25,139.92,139.85,0.27362705]
[1642448986913,0.25,139.92,139.85,6.27362705]
[1642448987315,10.9737,139.92,139.85,8.27663063]
[1642448987517,10.9737,139.92,139.85,2.27663063]
[1642448988317,10.9737,139.92,139.85,0.27362705]
[1642448989140,10.9737,139.92,139.86,10.29]
[1642448989141,13.00565081,139.92,139.86,10.29]
[1642448991047,13.00565081,139.92,139.88,0.02366845]
[1642448992752,26.7137859,139.92,139.88,0.02366845]
[1642448993556,13.00565081,139.92,139.88,0.02366845]
[1642448996055,13.00565081,139.92,139.84,32.97042705]
[1642448996255,13.00565081,139.92,139.84,38.97042705]
[1642448996456,13.00565081,139.92,139.84,32.97042705]
[1642448997159,13.00565081,139.92,139.84,38.97042705]
[1642448997661,13.00565081,139.92,139.84,32.97042705]
[1642448998858,13.00565081,139.92,139.84,38.97042705]
[1642449001063,13.00565081,139.92,139.86,0.02370986]
[1642449005967,13.00565081,139.92,139.85,0.27366845]
[1642449008795,13.00565081,139.92,139.86,10.29]
[1642449009095,2.28195081,139.92,139.86,10.29]
[1642449009292,2.28195081,139.92,139.87,0.25]
[1642449009492,24.77385081,139.93,139.87,0.25]
[1642449009893,35.49685081,139.93,139.87,0.25]
[1642449010093,35.49685081,139.93,139.87,22.8853]
[1642449010294,35.49685081,139.93,139.88,48.58238606]
[1642449010994,35.49685081,139.93,139.89,0.02364775]
[1642449013295,0.25,139.92,139.89,0.02364775]
[1642449014196,6.06439994,139.91,139.89,0.02364775]
[1642449015495,2.03195081,139.93,139.89,10.56364775]
[1642449016096,2.03195081,139.95,139.89,10.56364775]
[1642449016297,2.03195081,139.95,139.89,34.64004775]
[1642449016697,2.03195081,139.95,139.89,45.35844775]
[1642449016898,2.03195081,139.95,139.89,34.64004775]
[1642449017097,2.03195081,139.97,139.89,34.64004775]
[1642449017296,2.03195081,139.97,139.89,34.39004775]
[1642449017496,16.92363271,139.97,139.89,34.39004775]
[1642449017901,2.03195081,139.95,139.89,34.39004775]
[1642449018100,12.75395081,139.95,139.89,34.39004775]
[1642449018302,0.25,139.94,139.89,34.39004775]
[1642449019802,10.9721,139.94,139.89,34.39004775]
[1642449020000,13.00405081,139.94,139.89,34.39004775]
[1642449020800,10.9721,139.94,139.89,34.39004775]
[1642449021002,10.9721,139.94,139.91,0.02360636]
[1642449023504,13.00405081,139.94,139.91,0.02360636]
[1642449026008,13.00405081,139.94,139.89,24.09996498]
[1642449027508,13.00405081,139.94,139.89,34.38996498]
[1642449028010,2.28195081,139.94,139.89,34.38996498]
[1642449029513,0.25,139.94,139.89,34.38996498]
[1642449031119,0.25,139.94,139.91,0.02360636]
[1642449033122,2.28195081,139.94,139.91,0.02360636]
[1642449034747,0.25,139.94,139.91,0.02360636]
[1642449035950,0.25,139.94,139.89,24.09996498]
[1642449036150,0.25,139.94,139.9,10.29]
[1642449037450,2.03195081,139.95,139.9,10.29]
[1642449037650,2.03195081,139.95,139.91,0.25]
[1642449037850,2.03195081,139.95,139.91,10.54]
[1642449038250,2.03195081,139.95,139.92,41.52798473]
[1642449038652,2.03195081,139.95,139.93,6.06439994]
[1642449039055,2.03195081,139.96,139.93,6.06439994]
[1642449040352,2.03195081,139.97,139.93,6.06439994]
[1642449041157,2.03195081,139.97,139.95,0.02352361]
[1642449045362,2.03195081,139.97,139.96,6.06439994]
[1642449045963,2.03195081,139.97,139.96,0.02350293]
[1642449051169,2.03195081,139.97,139.96,6.06439994]
[1642449052371,2.03195081,139.97,139.95,10.29]
[1642449052598,2.03195081,139.97,139.96,3.03219997]
[1642449053001,2.03195081,139.97,139.95,3.03219997]
[1642449053198,2.03195081,139.97,139.93,24.04940293]
[1642449053397,0.25,139.96,139.93,24.04940293]
[1642449053598,12.75035081,139.99,139.93,24.04940293]
[1642449053796,12.75035081,139.99,139.93,24.30940293]
[1642449053797,2.03195081,139.99,139.93,24.30940293]
[1642449053998,2.03195081,139.99,139.94,10.29]
[1642449054999,2.03195081,139.98,139.94,10.29]
[1642449055998,10.7184,139.99,139.96,0.02350293]
[1642449055999,2.03195081,139.97,139.96,0.02350293]
[1642449057700,2.03195081,139.98,139.96,0.02350293]
[1642449058501,2.03195081,139.97,139.96,0.02350293]
[1642449059202,2.03195081,139.97,139.96,6.08790287]
[1642449059500,2.03195081,139.97,139.96,3.0557029]
[1642449059701,2.03195081,139.97,139.96,0.02350293]
[1642449060304,2.03195081,139.98,139.96,0.02350293]
[1642449061005,2.03195081,139.98,139.93,24.04940293]
[1642449061303,2.03195081,139.97,139.93,34.33940293]
[1642449062105,2.03195081,139.98,139.93,34.33940293]
[1642449062906,2.03195081,139.97,139.93,34.33940293]
[1642449065410,2.03195081,139.98,139.93,34.33940293]
[1642449066011,2.03195081,139.98,139.95,0.02352361]
[1642449066913,2.03195081,139.98,139.96,6.06439994]
[1642449067811,2.03195081,139.97,139.95,0.02352361]
[1642449068815,2.03195081,139.96,139.95,0.02352361]
[1642449069616,12.75355081,139.96,139.95,0.02352361]
[1642449070015,10.7216,139.96,139.95,0.02352361]
[1642449070216,10.9716,139.96,139.95,0.02352361]
[1642449071118,10.9716,139.96,139.9,0.02352361]
[1642449071515,10.7216,139.96,139.9,0.02352361]
[1642449071917,10.7216,139.96,139.9,0.27352361]
[1642449072119,10.7216,139.96,139.9,0.02352361]
[1642449072318,10.7216,139.96,139.9,40.14321659]
[1642449072920,0.25,139.95,139.9,40.14321659]
[1642449073319,2.26363962,139.95,139.9,40.14321659]
[1642449073921,0.25,139.95,139.9,40.14321659]
[1642449074120,0.25,139.95,139.91,10.29]
[1642449074323,0.25,139.95,139.91,10.55]
[1642449074921,0.25,139.95,139.91,33.097]
[1642449075122,2.01363962,139.97,139.92,0.25]
[1642449075521,2.01363962,139.97,139.91,33.097]
[1642449075922,2.01363962,139.97,139.93,0.02356498]
[1642449077324,0.25,139.96,139.93,0.02356498]
[1642449077523,2.26363962,139.96,139.93,0.02356498]
[1642449081025,2.26363962,139.96,139.94,3.03219997]
[1642449081230,2.26363962,139.96,139.91,33.12052361]
[1642449081424,2.26363962,139.96,139.94,3.03219997]
[1642449081625,2.26363962,139.96,139.95,45.07407067]
[1642449082325,0.25,139.96,139.95,45.07407067]
[1642449082526,0.25,139.96,139.91,33.12052361]
[1642449083230,2.26363962,139.96,139.91,33.12052361]
[1642449083429,2.01363962,139.96,139.92,41.52594058]
[1642449085132,0.25,139.95,139.92,41.52594058]
[1642449085434,2.01363962,139.97,139.93,6.06439994]
[1642449086032,2.01363962,139.97,139.94,0.02354429]
[1642449087667,2.01363962,139.97,139.95,3.03219997]
[1642449088268,2.01363962,139.97,139.94,0.02354429]
[1642449089871,2.01363962,139.96,139.94,0.02354429]
[1642449091072,2.01363962,139.96,139.92,41.54944351]
[1642449091273,0.25,139.95,139.92,41.54944351]
[1642449091471,0.25,139.95,139.93,3.03219997]
[1642449091675,2.01363962,139.96,139.93,3.03219997]
[1642449092673,2.01363962,139.96,139.92,41.54944351]
[1642449093075,12.73423962,139.96,139.92,41.54944351]
[1642449094077,2.01363962,139.95,139.92,41.54944351]
[1642449095076,0.25,139.94,139.92,41.54944351]
[1642449095974,0.25,139.94,139.92,41.52594058]
[1642449097278,0.25,139.94,139.92,54.84814055]
[1642449097477,37.54117799,139.98,139.92,55.10814055]
[1642449097478,4.07557799,139.98,139.92,55.10814055]
[1642449097881,4.07557799,139.98,139.93,0.25]
[1642449098078,4.07557799,139.98,139.93,10.54]
[1642449098280,28.57157799,140.01,139.93,10.8]
[1642449098480,28.57157799,140.01,139.95,37.43167266]
[1642449098680,34.57157799,140.01,139.95,37.43167266]
[1642449099081,0.25,140.0,139.95,37.43167266]
[1642449100584,10.9678,140.0,139.95,37.43167266]
[1642449100782,16.9678,140.0,139.95,37.43167266]
[1642449100982,16.9678,140.0,139.97,0.02348225]
[1642449102382,16.9678,140.0,139.98,6.06439994]
[1642449102582,16.9678,140.0,139.97,0.02348225]
[1642449104788,16.9678,140.0,139.98,6.06439994]
[1642449104985,16.9678,140.0,139.98,45.86522991]
[1642449105585,6.25,140.0,139.98,45.86522991]
[1642449105785,0.25,140.0,139.98,45.86522991]
[1642449105985,0.25,140.0,139.99,0.02323749]
[1642449106386,10.07557799,140.01,139.99,0.02323749]
[1642449107087,6.0,140.01,139.99,0.02323749]
[1642449107391,43.86627799,140.02,139.99,0.02323749]
[1642449107885,14.79207799,140.02,139.99,0.02323749]
[1642449108087,4.07557799,140.02,139.99,0.02323749]
[1642449108487,4.07557799,140.02,140.0,3.03219997]
[1642449108787,4.07557799,140.02,139.99,0.02323749]
[1642449109187,8.15038609,140.03,139.99,0.02323749]
[1642449109588,10.7161,140.02,139.99,0.02323749]
[1642449111193,10.7161,140.02,139.97,0.25]
[1642449111400,10.7161,140.02,139.96,35.05449615]
[1642449116025,10.7161,140.02,139.98,0.02325816]
[1642449116226,0.25,140.01,139.98,0.02325816]
[1642449116526,10.9668,140.01,139.98,0.02325816]
[1642449116725,10.7168,140.01,139.98,0.02325816]
[1642449116926,0.25,140.0,139.98,0.02325816]
[1642449118727,4.07557799,140.02,139.98,0.02325816]
[1642449120040,10.7146,140.04,139.98,0.02325816]
[1642449121032,0.25,140.03,139.97,0.27321682]
[1642449121229,0.25,140.03,139.97,10.56321682]
[1642449121430,0.25,140.03,139.97,16.82321682]
[1642449122031,0.25,140.03,139.97,16.56321682]
[1642449125538,0.25,140.03,139.98,39.32198048]
[1642449125739,0.25,140.03,139.98,33.9592]
[1642449126240,0.25,140.03,139.99,0.02323749]
[1642449127840,10.7146,140.04,139.99,0.02323749]
[1642449130043,14.79017799,140.04,139.99,0.02323749]
[1642449131044,10.7146,140.04,139.98,23.69239615]
[1642449131449,0.25,140.03,139.98,23.69239615]
[1642449131846,0.25,140.03,139.98,29.69239615]
[1642449132048,10.7146,140.04,139.98,23.69239615]
[1642449133346,0.25,140.03,139.98,23.69239615]
[1642449134146,10.9652,140.03,139.98,23.69239615]
[1642449134349,10.7152,140.03,139.98,23.69239615]
[1642449135148,14.739981,140.02,139.98,23.69239615]
[1642449135347,25.456081,140.02,139.98,0.02319615]
[1642449135948,25.456081,140.02,139.94,16.31321682]
[1642449136148,25.456081,140.02,139.95,24.7966]
[1642449136352,25.456081,140.02,139.95,30.7966]
[1642449138352,10.7161,140.02,139.96,45.96337684]
[1642449139855,10.7161,140.02,139.96,0.25]
[1642449140258,10.7161,140.02,139.95,30.7966]
[1642449140957,10.7161,140.02,139.98,0.02325816]
[1642449142262,0.25,140.01,139.98,0.02325816]
[1642449145964,0.25,140.01,139.96,16.31321682]
[1642449147397,0.25,140.01,139.96,10.31321682]
[1642449147896,0.25,140.01,139.96,16.31321682]
[1642449148296,0.25,140.01,139.96,10.31321682]
[1642449148797,0.25,140.01,139.96,16.31321682]
[1642449149497,0.25,140.01,139.96,10.31321682]
[1642449149901,10.7161,140.02,139.96,10.31321682]
[1642449150299,10.7161,140.02,139.96,16.31321682]
[1642449150501,10.7161,140.02,139.96,10.31321682]
[1642449151099,10.7161,140.02,139.98,0.02325816]
[1642449153702,4.07557799,140.03,139.98,0.02325816]
[1642449154605,41.56995646,140.04,139.98,0.02325816]
[1642449154803,41.56995646,140.04,139.98,0.27325816]
[1642449155504,14.78937799,140.05,139.98,43.59484016]
[1642449155906,14.78937799,140.05,139.98,49.85484016]
[1642449156106,14.78937799,140.05,140.0,0.02321682]
[1642449156309,10.7138,140.05,140.0,0.02321682]
[1642449158508,16.7138,140.05,140.0,0.02321682]
[1642449158706,0.25,140.04,140.0,0.02321682]
[1642449158905,10.965,140.04,140.0,0.02321682]
[1642449159106,6.73002368,140.03,140.0,0.02321682]
[1642449160111,17.44522368,140.03,140.0,0.02321682]
[1642449161108,17.44522368,140.03,139.97,0.02317549]
[1642449162111,23.4689,140.02,139.97,0.02317549]
[1642449162309,10.7182,140.01,139.97,0.02317549]
[1642449165151,10.2182,140.01,139.97,0.02317549]
[1642449165320,0.25,140.0,139.97,0.02317549]
[1642449166117,10.9675,140.0,139.94,24.87273749]
[1642449166317,10.9675,140.0,139.94,35.16273749]
[1642449168022,10.9675,140.0,139.94,41.16273749]
[1642449171021,10.9675,140.0,139.96,0.02329951]
[1642449173224,10.7175,140.0,139.96,0.02329951]
[1642449174026,38.26107799,140.02,139.96,0.02329951]
[1642449174723,34.1855,140.02,139.96,0.02329951]
[1642449174925,40.1855,140.02,139.96,0.02329951]
[1642449176028,40.1855,140.02,139.94,41.16275816]
[1642449176832,0.25,140.01,139.94,41.16275816]
[1642449177027,10.7176,140.0,139.94,41.16275816]
[1642449179733,38.26097799,140.02,139.94,41.16275816]
[1642449180034,4.07557799,140.02,139.95,0.25]
[1642449180233,4.07557799,140.03,139.96,10.29]
[1642449180634,38.36234567,140.02,139.96,10.29]
[1642449180834,44.36234567,140.02,139.96,10.29]
[1642449181037,44.36234567,140.02,139.96,10.31329951]
[1642449181638,38.36234567,140.02,139.96,10.31329951]
[1642449181836,28.99197799,140.04,139.96,10.31329951]
[1642449182238,4.07557799,140.03,139.96,10.31329951]
[1642449182638,10.7174,140.01,139.96,10.31329951]
[1642449184740,0.25,140.0,139.96,10.31329951]
[1642449184940,10.9676,140.0,139.96,10.31329951]
[1642449185140,10.7176,140.0,139.96,10.31329951]
[1642449185340,0.25,139.99,139.96,10.31329951]
[1642449185739,0.25,139.99,139.96,16.31329951]
[1642449186140,0.25,139.99,139.98,0.02325816]
[1642449188542,23.507,140.01,139.98,0.02325816]
[1642449188844,34.224,140.01,139.98,0.02325816]
[1642449189243,0.25,140.0,139.98,0.02325816]
[1642449190743,10.9675,140.0,139.98,0.02325816]
[1642449191243,10.9675,140.0,139.95,46.57301567]
[1642449196048,10.9675,140.0,139.97,0.02327883]
[1642449197049,0.25,140.0,139.97,0.02327883]
[1642449197249,4.07557799,140.03,139.97,0.02327883]
[1642449198449,52.90731253,140.04,139.97,0.02327883]
[1642449198650,10.7153,140.03,139.97,0.02327883]
[1642449201050,0.25,140.02,139.96,35.26203749]
[1642449201248,0.25,140.02,139.96,41.26203749]
[1642449201452,0.25,140.02,139.96,35.26203749]
[1642449201953,0.25,140.02,139.96,41.26203749]
[1642449206286,0.25,140.02,139.98,0.02325816]
[1642449208791,4.07557799,140.04,139.98,0.02325816]
[1642449209292,4.07557799,140.04,139.99,10.29]
[1642449209892,4.07557799,140.04,140.0,36.51558577]
[1642449210297,27.64807799,140.06,140.0,36.51558577]
[1642449211092,4.07557799,140.06,140.01,0.02319615]
[1642449212093,10.7127,140.07,140.01,0.02319615]
[1642449212293,0.25,140.06,140.01,0.02319615]
[1642449213994,10.7127,140.07,140.01,0.02319615]
[1642449214195,27.00847799,140.08,140.01,0.27319615]
[1642449214596,4.07557799,140.07,140.01,24.92409615]
[1642449215297,14.78787799,140.07,140.01,24.92409615]
[1642449215499,38.22599925,140.06,140.01,24.92409615]
[1642449216097,0.25,140.05,140.03,0.02315483]
[1642449216497,10.9637,140.05,140.03,0.02315483]
[1642449218499,33.7347,140.05,140.03,0.02315483]
[1642449218697,10.7137,140.05,140.03,0.02315483]
[1642449218898,4.07557799,140.06,140.03,0.02315483]
[1642449219699,51.69938562,140.06,140.03,0.02315483]
[1642449219901,2.03678196,140.04,140.03,0.02315483]
[1642449221102,2.03678196,140.04,139.99,29.48661352]
[1642449221302,2.03678196,140.04,139.99,39.77661352]
[1642449222808,2.03678196,140.04,139.99,16.31311352]
[1642449223004,2.03678196,140.04,139.99,10.31311352]
[1642449223705,0.25,140.03,139.99,10.31311352]
[1642449223907,2.28678196,140.03,139.99,10.31311352]
[1642449224807,2.28678196,140.03,139.99,0.02311352]
[1642449225008,13.00208196,140.03,139.99,0.02311352]
[1642449225610,2.03678196,140.01,139.99,0.02311352]
[1642449225808,2.03678196,140.01,139.96,16.06311352]
[1642449226409,2.03678196,140.01,139.96,61.89570036]
[1642449228011,2.03678196,140.01,139.96,133.54570036]
[1642449228408,2.03678196,140.01,139.96,61.89570036]
[1642449228607,2.03678196,140.02,139.96,61.89570036]
[1642449229234,0.25,140.01,139.96,61.89570036]
[1642449229835,2.28678196,140.01,139.96,61.89570036]
[1642449230637,2.03678196,140.01,139.96,61.89570036]
[1642449231736,2.03678196,140.01,139.96,10.06311352]
[1642449231939,2.03678196,140.01,139.92,5.72479915]
[1642449232136,8.03678196,140.01,139.92,12.28772963]
[1642449232336,9.79298154,140.01,139.92,12.28772963]
[1642449232534,8.03678196,140.01,139.92,12.28772963]
[1642449232736,0.25,140.0,139.93,34.85618998]
[1642449233337,2.03678196,139.99,139.93,40.85618998]
[1642449234338,0.25,140.0,139.93,40.85618998]
[1642449234536,10.7184,139.99,139.93,40.85618998]
[1642449234737,30.1434,140.01,139.93,40.85618998]
[1642449235639,34.8606,140.01,139.94,24.409]
[1642449236036,0.25,140.0,139.94,24.409]
[1642449236237,0.25,140.0,139.93,34.85618998]
[1642449236644,2.00619958,140.0,139.93,34.85618998]
[1642449236845,0.25,140.0,139.93,34.85618998]
[1642449237045,10.9676,140.0,139.93,34.85618998]
[1642449237848,0.25,140.0,139.93,34.85618998]
[1642449238646,0.25,140.0,139.93,59.44928998]
[1642449239748,34.8602,140.01,139.93,65.44928998]
[1642449240348,10.7168,140.01,139.93,75.73928998]
[1642449240548,2.03678196,140.02,139.93,75.73928998]
[1642449240749,2.03678196,140.02,139.94,0.25]
[1642449240954,2.03678196,140.02,139.95,10.29]
[1642449241149,2.03678196,140.02,139.96,24.4696]
[1642449241350,2.03678196,140.02,139.97,38.70869818]
[1642449241551,10.7156,140.03,139.97,38.70869818]
[1642449243253,12.75238196,140.03,139.97,38.70869818]
[1642449243655,12.75238196,140.03,139.97,44.70869818]
[1642449244054,2.03678196,140.03,139.97,44.70869818]
[1642449244957,2.03678196,140.03,139.98,10.29]
[1642449245360,2.03678196,140.03,139.98,39.485]
[1642449246759,2.03678196,140.04,139.98,39.485]
[1642449246958,12.75138196,140.04,139.98,39.485]
[1642449247561,12.75138196,140.04,139.98,33.485]
[1642449248462,2.03678196,140.03,139.98,33.485]
[1642449251262,2.03678196,140.03,139.98,39.485]
[1642449252163,2.03678196,140.03,139.98,39.745]
[1642449252463,2.03678196,140.03,139.98,39.485]
[1642449253063,12.75208196,140.03,139.98,39.485]
[1642449253263,0.25,140.02,139.98,39.485]
[1642449254263,2.28678196,140.02,139.98,39.485]
[1642449255264,2.28678196,140.02,139.98,39.745]
[1642449255466,2.03678196,140.02,139.98,39.745]
[1642449257065,2.03678196,140.02,139.98,29.455]
[1642449257266,2.03678196,140.04,139.98,29.455]
[1642449257466,2.03678196,140.04,139.98,39.745]
[1642449257666,12.75138196,140.04,139.98,33.485]
[1642449257869,12.75138196,140.04,139.92,1.99772963]
[1642449258068,27.22838196,140.04,139.94,10.29]
[1642449258269,24.0792,140.03,139.95,23.4647]
[1642449258671,30.0792,140.03,139.95,60.48702348]
[1642449259270,2.03678196,140.02,139.95,60.48702348]
[1642449259472,2.03678196,140.02,139.95,66.48702348]
[1642449259671,10.7177,140.01,139.95,66.48702348]
[1642449261172,0.25,140.0,139.95,66.48702348]
[1642449261972,0.25,140.0,139.95,60.48702348]
[1642449266101,0.25,140.0,139.95,66.48702348]
[1642449266302,0.25,140.0,139.95,60.48702348]
[1642449267901,4.07557799,140.06,139.96,81.94]
[1642449268103,4.07557799,140.06,139.97,22.5879]
[1642449268302,4.07557799,140.06,139.98,82.19]
[1642449268703,4.07557799,140.06,139.99,1.735657]
[1642449268903,4.07557799,140.06,140.0,10.29]
[1642449269107,4.07557799,140.06,140.0,10.54]
[1642449269307,8.14888619,140.08,140.0,16.8]
[1642449270715,14.86630701,140.09,140.0,16.8]
[1642449275358,0.25,140.08,140.0,16.8]
[1642449275558,14.86630701,140.09,140.0,16.8]
[1642449276360,4.15520701,140.09,140.01,71.65]
[1642449276558,22.91587631,140.09,140.03,71.65]